[Event "Titled Tuesday Blitz July 18 Late 2023"]
[White "Kanyamarala, Tarun"]
[Black "Nakamura, Hikaru"]
[WhiteFideId "45004714"]
[BlackFideId "2016192"]
[WhiteElo "2507"]
[BlackElo "3249"]
[Result "0-1"]
[Round "1"]
[TimeControl "180+2"]
[Date "2023.07.18"]
[WhiteClock "0:01:07"]
[BlackClock "0:02:27"]
[Board "1"]

1. d4 {[%clk 0:02:59]}  a6 {[%clk 0:02:59]} 2. c4 {[%clk 0:02:58]}  e6 {[%clk 0:02:57]} 3. Nf3 {[%clk 0:02:50]}  Nf6 {[%clk 0:02:54]} 4. g3 {[%clk 0:02:47]}  b5 {[%clk 0:02:54]} 5. cxb5 {[%clk 0:02:40]}  axb5 {[%clk 0:02:55]} 6. Bg2 {[%clk 0:02:40]}  Bb7 {[%clk 0:02:55]} 7. O-O {[%clk 0:02:40]}  c5 {[%clk 0:02:55]} 8. b3 {[%clk 0:02:34]}  d5 {[%clk 0:02:50]} 9. dxc5 {[%clk 0:02:33]}  Bxc5 {[%clk 0:02:50]} 10. Bb2 {[%clk 0:02:33]}  Nbd7 {[%clk 0:02:50]} 11. Nc3 {[%clk 0:02:32]}  b4 {[%clk 0:02:49]} 12. Nb5 {[%clk 0:02:29]}  Qb6 {[%clk 0:02:47]} 13. Nbd4 {[%clk 0:02:25]}  O-O {[%clk 0:02:47]} 14. e3 {[%clk 0:02:24]}  Ne4 {[%clk 0:02:45]} 15. Ne2 {[%clk 0:02:09]}  Ba6 {[%clk 0:02:41]} 16. Ne5 {[%clk 0:02:03]}  Nxe5 {[%clk 0:02:38]} 17. Bxe5 {[%clk 0:02:02]}  Bxe3 {[%clk 0:02:39]} 18. Bxe4 {[%clk 0:01:53]}  dxe4 {[%clk 0:02:39]} 19. fxe3 {[%clk 0:01:54]}  Qxe3+ {[%clk 0:02:40]} 20. Rf2 {[%clk 0:01:53]}  Rfd8 {[%clk 0:02:38]} 21. Qc1 {[%clk 0:01:50]}  Qxc1+ {[%clk 0:02:36]} 22. Rxc1 {[%clk 0:01:49]}  e3 {[%clk 0:02:36]} 23. Rg2 {[%clk 0:01:39]}  Bb7 {[%clk 0:02:35]} 24. Nf4 {[%clk 0:01:26]}  Bxg2 {[%clk 0:02:35]} 25. Nxg2 {[%clk 0:01:25]}  f6 {[%clk 0:02:30]} 26. Bf4 {[%clk 0:01:20]}  e2 {[%clk 0:02:30]} 27. Re1 {[%clk 0:01:18]}  Rxa2 {[%clk 0:02:27]} 28. Kf2 {[%clk 0:01:19]}  e5 {[%clk 0:02:25]} 29. Be3 {[%clk 0:01:17]}  Rd3 {[%clk 0:02:25]} 30. Rxe2 {[%clk 0:01:14]}  Rxe2+ {[%clk 0:02:25]} 31. Kxe2 {[%clk 0:01:15]}  Rxb3 {[%clk 0:02:26]} 32. Ne1 {[%clk 0:01:15]}  Rb2+ {[%clk 0:02:25]} 33. Bd2 {[%clk 0:01:14]}  b3 {[%clk 0:02:25]} 34. Nd3 {[%clk 0:01:13]}  Ra2 {[%clk 0:02:26]} 35. Kd1 {[%clk 0:01:12]}  b2 {[%clk 0:02:26]} 36. Kc2 {[%clk 0:01:07]}  b1=Q+ {[%clk 0:02:27]} 0-1


[Site "https://www.chess.com"]

[Event "Titled Tuesday Blitz July 18 Late 2023"]
[White "Naroditsky, Daniel"]
[Black "Silva, Caio Henrique Angelico"]
[WhiteFideId "2026961"]
[BlackFideId "22777210"]
[WhiteElo "3141"]
[BlackElo "2506"]
[Result "1/2-1/2"]
[Round "1"]
[TimeControl "180+2"]
[Date "2023.07.18"]
[WhiteClock "0:00:18"]
[BlackClock "0:00:21"]
[Board "2"]

1. d4 {[%clk 0:03:00]}  d5 {[%clk 0:02:57]} 2. Nc3 {[%clk 0:03:01]}  Nf6 {[%clk 0:02:56]} 3. Bf4 {[%clk 0:03:02]}  c5 {[%clk 0:02:55]} 4. e4 {[%clk 0:03:02]}  cxd4 {[%clk 0:02:55]} 5. Qxd4 {[%clk 0:03:02]}  Nc6 {[%clk 0:02:54]} 6. Bb5 {[%clk 0:03:02]}  dxe4 {[%clk 0:02:36]} 7. Qa4 {[%clk 0:02:57]}  Bd7 {[%clk 0:02:33]} 8. O-O-O {[%clk 0:02:58]}  Qb6 {[%clk 0:02:27]} 9. Be3 {[%clk 0:02:45]}  Qc7 {[%clk 0:02:23]} 10. Nxe4 {[%clk 0:02:36]}  Nxe4 {[%clk 0:02:16]} 11. Qxe4 {[%clk 0:02:37]}  e6 {[%clk 0:02:14]} 12. Nf3 {[%clk 0:02:36]}  Be7 {[%clk 0:02:03]} 13. h4 {[%clk 0:02:28]}  a6 {[%clk 0:02:00]} 14. Ba4 {[%clk 0:02:20]}  Rc8 {[%clk 0:01:55]} 15. Kb1 {[%clk 0:02:09]}  b5 {[%clk 0:01:45]} 16. Bb3 {[%clk 0:02:09]}  Na5 {[%clk 0:01:45]} 17. Ne5 {[%clk 0:02:02]}  Bc6 {[%clk 0:01:38]} 18. Nxc6 {[%clk 0:01:58]}  Qxc6 {[%clk 0:01:37]} 19. Qxc6+ {[%clk 0:01:55]}  Rxc6 {[%clk 0:01:33]} 20. g3 {[%clk 0:01:49]}  Bc5 {[%clk 0:01:28]} 21. Bxc5 {[%clk 0:01:46]}  Rxc5 {[%clk 0:01:29]} 22. Rd3 {[%clk 0:01:46]}  Ke7 {[%clk 0:01:23]} 23. Rhd1 {[%clk 0:01:46]}  Rhc8 {[%clk 0:01:20]} 24. Rd7+ {[%clk 0:01:45]}  Kf6 {[%clk 0:01:20]} 25. R1d3 {[%clk 0:01:38]}  Rf5 {[%clk 0:01:15]} 26. f4 {[%clk 0:01:32]}  Rfc5 {[%clk 0:01:04]} 27. Rd2 {[%clk 0:01:17]}  Nxb3 {[%clk 0:01:02]} 28. axb3 {[%clk 0:01:17]}  R8c7 {[%clk 0:01:01]} 29. R7d4 {[%clk 0:01:04]}  h5 {[%clk 0:00:59]} 30. c3 {[%clk 0:01:03]}  Kf5 {[%clk 0:00:56]} 31. R2d3 {[%clk 0:01:03]}  f6 {[%clk 0:00:52]} 32. Kc2 {[%clk 0:01:02]}  a5 {[%clk 0:00:49]} 33. b4 {[%clk 0:01:02]}  axb4 {[%clk 0:00:48]} 34. Rxb4 {[%clk 0:01:02]}  e5 {[%clk 0:00:40]} 35. fxe5 {[%clk 0:01:03]}  Rxe5 {[%clk 0:00:40]} 36. Rf3+ {[%clk 0:01:00]}  Kg6 {[%clk 0:00:40]} 37. Kb3 {[%clk 0:01:00]}  Rd7 {[%clk 0:00:40]} 38. c4 {[%clk 0:00:47]}  bxc4+ {[%clk 0:00:39]} 39. Rxc4 {[%clk 0:00:48]}  Rb5+ {[%clk 0:00:39]} 40. Kc3 {[%clk 0:00:48]}  Rdb7 {[%clk 0:00:38]} 41. b4 {[%clk 0:00:48]}  Re5 {[%clk 0:00:36]} 42. Kb3 {[%clk 0:00:40]}  Re1 {[%clk 0:00:35]} 43. Rf2 {[%clk 0:00:33]}  Re3+ {[%clk 0:00:25]} 44. Rc3 {[%clk 0:00:34]}  Re4 {[%clk 0:00:24]} 45. Rc4 {[%clk 0:00:34]}  Re3+ {[%clk 0:00:24]} 46. Ka4 {[%clk 0:00:29]}  Rxg3 {[%clk 0:00:24]} 47. b5 {[%clk 0:00:30]}  Rg4 {[%clk 0:00:24]} 48. Rff4 {[%clk 0:00:26]}  Rxf4 {[%clk 0:00:20]} 49. Rxf4 {[%clk 0:00:27]}  Kf7 {[%clk 0:00:20]} 50. Ka5 {[%clk 0:00:28]}  Ke6 {[%clk 0:00:19]} 51. Ka6 {[%clk 0:00:28]}  Rb8 {[%clk 0:00:20]} 52. b6 {[%clk 0:00:18]}  g5 {[%clk 0:00:21]} 1/2-1/2


[Site "https://www.chess.com"]

[Event "Titled Tuesday Blitz July 18 Late 2023"]
[White "Nihal Sarin"]
[Black "Melian, Juan Sebastian"]
[WhiteFideId "25092340"]
[BlackFideId "3706575"]
[WhiteElo "3058"]
[BlackElo "2504"]
[Result "1-0"]
[Round "1"]
[TimeControl "180+2"]
[Date "2023.07.18"]
[WhiteClock "0:00:49"]
[BlackClock "0:00:02"]
[Board "4"]

1. a3 {[%clk 0:02:57]}  d5 {[%clk 0:02:57]} 2. Nf3 {[%clk 0:02:55]}  Nf6 {[%clk 0:02:56]} 3. d4 {[%clk 0:02:47]}  Bf5 {[%clk 0:02:55]} 4. c4 {[%clk 0:02:44]}  e6 {[%clk 0:02:55]} 5. Qb3 {[%clk 0:02:43]}  Qc8 {[%clk 0:02:53]} 6. cxd5 {[%clk 0:02:42]}  exd5 {[%clk 0:02:54]} 7. Nc3 {[%clk 0:02:42]}  c6 {[%clk 0:02:49]} 8. Bf4 {[%clk 0:02:40]}  Be7 {[%clk 0:02:47]} 9. e3 {[%clk 0:02:37]}  O-O {[%clk 0:02:45]} 10. h3 {[%clk 0:02:34]}  h6 {[%clk 0:02:44]} 11. Be2 {[%clk 0:02:33]}  Nbd7 {[%clk 0:02:32]} 12. Rc1 {[%clk 0:02:31]}  Nb6 {[%clk 0:02:01]} 13. O-O {[%clk 0:01:58]}  Re8 {[%clk 0:01:51]} 14. Ne5 {[%clk 0:01:57]}  Nfd7 {[%clk 0:01:44]} 15. Nd3 {[%clk 0:01:54]}  Nc4 {[%clk 0:01:41]} 16. Rfd1 {[%clk 0:01:49]}  Ndb6 {[%clk 0:01:34]} 17. Nc5 {[%clk 0:01:36]}  Bd6 {[%clk 0:01:21]} 18. Bxd6 {[%clk 0:01:35]}  Nxd6 {[%clk 0:01:22]} 19. Bf1 {[%clk 0:01:34]}  Re7 {[%clk 0:01:17]} 20. a4 {[%clk 0:01:34]}  Qd8 {[%clk 0:00:59]} 21. a5 {[%clk 0:01:34]}  Nbc8 {[%clk 0:01:00]} 22. a6 {[%clk 0:01:33]}  b6 {[%clk 0:00:59]} 23. Nd3 {[%clk 0:01:34]}  Rc7 {[%clk 0:00:42]} 24. Ne5 {[%clk 0:01:33]}  Ne7 {[%clk 0:00:42]} 25. Ne2 {[%clk 0:01:33]}  Rac8 {[%clk 0:00:26]} 26. Nf4 {[%clk 0:01:33]}  f6 {[%clk 0:00:23]} 27. Ned3 {[%clk 0:01:33]}  Kh8 {[%clk 0:00:19]} 28. Nb4 {[%clk 0:01:33]}  Qd7 {[%clk 0:00:18]} 29. Qa4 {[%clk 0:01:30]}  Bh7 {[%clk 0:00:14]} 30. Bd3 {[%clk 0:01:30]}  Bxd3 {[%clk 0:00:14]} 31. Nbxd3 {[%clk 0:01:29]}  Nc4 {[%clk 0:00:12]} 32. b3 {[%clk 0:01:28]}  Nd6 {[%clk 0:00:12]} 33. Rc2 {[%clk 0:01:29]}  Ne4 {[%clk 0:00:13]} 34. Rdc1 {[%clk 0:01:28]}  Qd6 {[%clk 0:00:13]} 35. Qb4 {[%clk 0:01:27]}  c5 {[%clk 0:00:13]} 36. dxc5 {[%clk 0:01:26]}  bxc5 {[%clk 0:00:14]} 37. Qa5 {[%clk 0:01:25]}  c4 {[%clk 0:00:14]} 38. bxc4 {[%clk 0:01:17]}  Rxc4 {[%clk 0:00:14]} 39. Rxc4 {[%clk 0:00:57]}  dxc4 {[%clk 0:00:15]} 40. Ne1 {[%clk 0:00:58]}  c3 {[%clk 0:00:15]} 41. Nf3 {[%clk 0:00:58]}  c2 {[%clk 0:00:14]} 42. Nd4 {[%clk 0:00:57]}  Nc6 {[%clk 0:00:12]} 43. Qf5 {[%clk 0:00:54]}  Re8 {[%clk 0:00:08]} 44. Qb5 {[%clk 0:00:50]}  Re6 {[%clk 0:00:02]} 45. Nfxe6 {[%clk 0:00:49]} 1-0


[Site "https://www.chess.com"]

[Event "Titled Tuesday Blitz July 18 Late 2023"]
[White "Martinez Alcantara, Jose Eduardo"]
[Black "Kisic, Bozidar"]
[WhiteFideId "3805662"]
[BlackFideId "16500350"]
[WhiteElo "3046"]
[BlackElo "2503"]
[Result "1-0"]
[Round "1"]
[TimeControl "180+2"]
[Date "2023.07.18"]
[WhiteClock "0:00:30"]
[BlackClock "0:00:07"]
[Board "6"]

1. e4 {[%clk 0:03:00]}  g6 {[%clk 0:02:58]} 2. d4 {[%clk 0:03:00]}  Bg7 {[%clk 0:02:58]} 3. c3 {[%clk 0:03:00]}  d6 {[%clk 0:02:57]} 4. Bd3 {[%clk 0:03:01]}  a6 {[%clk 0:02:55]} 5. Nf3 {[%clk 0:03:01]}  Nc6 {[%clk 0:02:52]} 6. O-O {[%clk 0:03:01]}  e5 {[%clk 0:02:50]} 7. dxe5 {[%clk 0:03:00]}  dxe5 {[%clk 0:02:49]} 8. h3 {[%clk 0:03:00]}  h6 {[%clk 0:02:46]} 9. Be3 {[%clk 0:02:58]}  Be6 {[%clk 0:02:44]} 10. Qe2 {[%clk 0:02:58]}  Qe7 {[%clk 0:02:40]} 11. Nbd2 {[%clk 0:02:56]}  Nf6 {[%clk 0:02:36]} 12. b4 {[%clk 0:02:56]}  Nh5 {[%clk 0:02:34]} 13. Rfe1 {[%clk 0:02:49]}  Nf4 {[%clk 0:02:24]} 14. Bxf4 {[%clk 0:02:49]}  exf4 {[%clk 0:02:24]} 15. e5 {[%clk 0:02:50]}  O-O-O {[%clk 0:02:16]} 16. Bxa6 {[%clk 0:02:31]}  Bd5 {[%clk 0:01:37]} 17. Bc4 {[%clk 0:02:26]}  g5 {[%clk 0:01:35]} 18. b5 {[%clk 0:02:17]}  Na5 {[%clk 0:01:35]} 19. Bxd5 {[%clk 0:02:16]}  Rxd5 {[%clk 0:01:36]} 20. c4 {[%clk 0:02:16]}  Rdd8 {[%clk 0:01:27]} 21. Nb3 {[%clk 0:02:15]}  Qb4 {[%clk 0:01:26]} 22. Nxa5 {[%clk 0:02:15]}  Qxa5 {[%clk 0:01:26]} 23. Qe4 {[%clk 0:02:15]}  Kb8 {[%clk 0:01:20]} 24. a4 {[%clk 0:02:15]}  Rhe8 {[%clk 0:01:19]} 25. c5 {[%clk 0:01:55]}  f6 {[%clk 0:01:19]} 26. Qg6 {[%clk 0:01:55]}  Bh8 {[%clk 0:01:05]} 27. exf6 {[%clk 0:01:54]}  Rf8 {[%clk 0:01:05]} 28. Rab1 {[%clk 0:01:31]}  b6 {[%clk 0:00:58]} 29. cxb6 {[%clk 0:01:29]}  Qxb6 {[%clk 0:00:58]} 30. a5 {[%clk 0:01:24]}  Qxf6 {[%clk 0:00:58]} 31. Qe4 {[%clk 0:01:23]}  Qf5 {[%clk 0:00:49]} 32. Qc4 {[%clk 0:01:18]}  Qd5 {[%clk 0:00:46]} 33. Qa4 {[%clk 0:01:11]}  g4 {[%clk 0:00:34]} 34. hxg4 {[%clk 0:01:10]}  h5 {[%clk 0:00:35]} 35. g5 {[%clk 0:01:08]}  h4 {[%clk 0:00:34]} 36. b6 {[%clk 0:01:09]}  c6 {[%clk 0:00:23]} 37. a6 {[%clk 0:01:09]}  h3 {[%clk 0:00:18]} 38. a7+ {[%clk 0:01:07]}  Kb7 {[%clk 0:00:19]} 39. Re7+ {[%clk 0:01:07]}  Rd7 {[%clk 0:00:17]} 40. Rxd7+ {[%clk 0:01:05]}  Qxd7 {[%clk 0:00:18]} 41. Qb4 {[%clk 0:00:40]}  Rf7 {[%clk 0:00:16]} 42. a8=Q+ {[%clk 0:00:31]}  Kxa8 {[%clk 0:00:16]} 43. b7+ {[%clk 0:00:32]}  Kb8 {[%clk 0:00:07]} 44. Qa5 {[%clk 0:00:30]} 1-0


[Site "https://www.chess.com"]

[Event "Titled Tuesday Blitz July 18 Late 2023"]
[White "D`Arruda, Ricardo D."]
[Black "Bortnyk, Mykola"]
[WhiteFideId "100692"]
[BlackFideId "14120836"]
[WhiteElo "2503"]
[BlackElo "3041"]
[Result "1/2-1/2"]
[Round "1"]
[TimeControl "180+2"]
[Date "2023.07.18"]
[WhiteClock "0:00:32"]
[BlackClock "0:00:18"]
[Board "7"]

1. d4 {[%clk 0:02:54]}  Nf6 {[%clk 0:02:45]} 2. Nf3 {[%clk 0:02:54]}  e6 {[%clk 0:02:44]} 3. c4 {[%clk 0:02:53]}  Bb4+ {[%clk 0:02:41]} 4. Nbd2 {[%clk 0:02:53]}  O-O {[%clk 0:02:41]} 5. a3 {[%clk 0:02:53]}  Be7 {[%clk 0:02:41]} 6. e4 {[%clk 0:02:52]}  d5 {[%clk 0:02:37]} 7. cxd5 {[%clk 0:02:51]}  exd5 {[%clk 0:02:37]} 8. e5 {[%clk 0:02:52]}  Ne4 {[%clk 0:02:37]} 9. Bd3 {[%clk 0:02:51]}  Bf5 {[%clk 0:02:23]} 10. Qc2 {[%clk 0:02:48]}  c5 {[%clk 0:02:18]} 11. Nxe4 {[%clk 0:02:47]}  dxe4 {[%clk 0:02:16]} 12. Bxe4 {[%clk 0:02:48]}  Bxe4 {[%clk 0:02:16]} 13. Qxe4 {[%clk 0:02:48]}  cxd4 {[%clk 0:02:15]} 14. Qxd4 {[%clk 0:02:45]}  Nc6 {[%clk 0:01:49]} 15. Qxd8 {[%clk 0:02:43]}  Raxd8 {[%clk 0:01:49]} 16. O-O {[%clk 0:02:42]}  Rd5 {[%clk 0:01:47]} 17. Be3 {[%clk 0:02:38]}  Rfd8 {[%clk 0:01:45]} 18. Rfe1 {[%clk 0:02:29]}  a5 {[%clk 0:01:41]} 19. h3 {[%clk 0:02:28]}  a4 {[%clk 0:01:39]} 20. Bb6 {[%clk 0:02:24]}  R8d7 {[%clk 0:01:37]} 21. Re2 {[%clk 0:02:09]}  h6 {[%clk 0:01:31]} 22. Re4 {[%clk 0:01:45]}  Rb5 {[%clk 0:01:28]} 23. Be3 {[%clk 0:01:44]}  Rxb2 {[%clk 0:00:47]} 24. Rxa4 {[%clk 0:01:43]}  Rb5 {[%clk 0:00:29]} 25. Re4 {[%clk 0:01:42]}  Rdd5 {[%clk 0:00:28]} 26. Bf4 {[%clk 0:01:39]}  Ra5 {[%clk 0:00:28]} 27. Rb1 {[%clk 0:01:32]}  Ra7 {[%clk 0:00:27]} 28. a4 {[%clk 0:01:30]}  g5 {[%clk 0:00:27]} 29. Be3 {[%clk 0:01:27]}  Bc5 {[%clk 0:00:25]} 30. Rb5 {[%clk 0:01:10]}  Rd1+ {[%clk 0:00:24]} 31. Kh2 {[%clk 0:01:10]}  Bxe3 {[%clk 0:00:25]} 32. Rxe3 {[%clk 0:01:09]}  Nd8 {[%clk 0:00:23]} 33. a5 {[%clk 0:01:05]}  Ra1 {[%clk 0:00:21]} 34. Rd3 {[%clk 0:01:05]}  Ne6 {[%clk 0:00:20]} 35. Rd7 {[%clk 0:01:03]}  R1xa5 {[%clk 0:00:18]} 36. Rbxb7 {[%clk 0:01:02]}  Rxb7 {[%clk 0:00:18]} 37. Rxb7 {[%clk 0:01:03]}  Ra2 {[%clk 0:00:19]} 38. Kg3 {[%clk 0:01:02]}  Nf4 {[%clk 0:00:19]} 39. Nd4 {[%clk 0:00:59]}  Ne2+ {[%clk 0:00:16]} 40. Nxe2 {[%clk 0:00:58]}  Rxe2 {[%clk 0:00:17]} 41. Rb5 {[%clk 0:00:55]}  Kg7 {[%clk 0:00:18]} 42. Kf3 {[%clk 0:00:55]}  Re1 {[%clk 0:00:18]} 43. g3 {[%clk 0:00:56]}  Kg6 {[%clk 0:00:18]} 44. Rb6+ {[%clk 0:00:54]}  Kg7 {[%clk 0:00:19]} 45. Rb5 {[%clk 0:00:53]}  Kg6 {[%clk 0:00:20]} 46. g4 {[%clk 0:00:50]}  Rh1 {[%clk 0:00:18]} 47. Kg2 {[%clk 0:00:48]}  Re1 {[%clk 0:00:19]} 48. Kg3 {[%clk 0:00:46]}  Kg7 {[%clk 0:00:18]} 49. Rc5 {[%clk 0:00:41]}  Rg1+ {[%clk 0:00:18]} 50. Kh2 {[%clk 0:00:41]}  Re1 {[%clk 0:00:18]} 51. Kg3 {[%clk 0:00:41]}  Kg6 {[%clk 0:00:19]} 52. f3 {[%clk 0:00:37]}  Re2 {[%clk 0:00:18]} 53. h4 {[%clk 0:00:35]}  Kg7 {[%clk 0:00:19]} 54. h5 {[%clk 0:00:32]}  Kh7 {[%clk 0:00:17]} 55. Rc7 {[%clk 0:00:31]}  Kg7 {[%clk 0:00:17]} 56. Rc5 {[%clk 0:00:32]}  Kh7 {[%clk 0:00:18]} 57. Rc7 {[%clk 0:00:31]}  Kg7 {[%clk 0:00:18]} 58. Rc5 {[%clk 0:00:32]} 1/2-1/2


[Site "https://www.chess.com"]

[Event "Titled Tuesday Blitz July 18 Late 2023"]
[White "Paravyan, David"]
[Black "Seletsky, Grigory"]
[WhiteFideId "4194985"]
[BlackFideId "14112191"]
[WhiteElo "3025"]
[BlackElo "2501"]
[Result "1-0"]
[Round "1"]
[TimeControl "180+2"]
[Date "2023.07.18"]
[WhiteClock "0:02:45"]
[BlackClock "0:00:05"]
[Board "8"]

1. e4 {[%clk 0:02:56]}  c5 {[%clk 0:02:44]} 2. Nf3 {[%clk 0:02:56]}  e6 {[%clk 0:02:43]} 3. d4 {[%clk 0:02:57]}  cxd4 {[%clk 0:02:44]} 4. Nxd4 {[%clk 0:02:58]}  Nf6 {[%clk 0:02:43]} 5. Nc3 {[%clk 0:02:58]}  d6 {[%clk 0:02:41]} 6. g4 {[%clk 0:02:58]}  a6 {[%clk 0:02:37]} 7. g5 {[%clk 0:02:58]}  Nfd7 {[%clk 0:02:38]} 8. h4 {[%clk 0:02:58]}  Nc6 {[%clk 0:02:37]} 9. Rg1 {[%clk 0:02:58]}  g6 {[%clk 0:02:35]} 10. Be3 {[%clk 0:02:56]}  Qc7 {[%clk 0:02:27]} 11. Nxc6 {[%clk 0:02:55]}  bxc6 {[%clk 0:02:25]} 12. Qd4 {[%clk 0:02:55]}  e5 {[%clk 0:02:24]} 13. Qc4 {[%clk 0:02:56]}  Nb6 {[%clk 0:02:13]} 14. Nd5 {[%clk 0:02:55]}  Nxd5 {[%clk 0:01:58]} 15. exd5 {[%clk 0:02:55]}  Bb7 {[%clk 0:01:52]} 16. O-O-O {[%clk 0:02:54]}  Rc8 {[%clk 0:01:28]} 17. Qa4 {[%clk 0:02:53]}  Bg7 {[%clk 0:01:18]} 18. Bh3 {[%clk 0:02:52]}  Rd8 {[%clk 0:01:07]} 19. Bg2 {[%clk 0:02:52]}  Rc8 {[%clk 0:01:04]} 20. h5 {[%clk 0:02:53]}  O-O {[%clk 0:01:02]} 21. dxc6 {[%clk 0:02:51]}  Bxc6 {[%clk 0:01:01]} 22. Bxc6 {[%clk 0:02:52]}  Qxc6 {[%clk 0:01:02]} 23. Qxc6 {[%clk 0:02:53]}  Rxc6 {[%clk 0:01:02]} 24. h6 {[%clk 0:02:53]}  Bh8 {[%clk 0:01:01]} 25. Rd5 {[%clk 0:02:54]}  Re8 {[%clk 0:00:43]} 26. Rgd1 {[%clk 0:02:52]}  Re6 {[%clk 0:00:44]} 27. a4 {[%clk 0:02:50]}  f5 {[%clk 0:00:42]} 28. b4 {[%clk 0:02:46]}  f4 {[%clk 0:00:33]} 29. Bc5 {[%clk 0:02:44]}  dxc5 {[%clk 0:00:31]} 30. Rd8+ {[%clk 0:02:45]}  Kf7 {[%clk 0:00:32]} 31. b5 {[%clk 0:02:45]}  axb5 {[%clk 0:00:27]} 32. axb5 {[%clk 0:02:46]}  Rb6 {[%clk 0:00:19]} 33. Rxh8 {[%clk 0:02:47]}  Re7 {[%clk 0:00:18]} 34. Rxh7+ {[%clk 0:02:47]}  Ke6 {[%clk 0:00:19]} 35. Rxe7+ {[%clk 0:02:42]}  Kxe7 {[%clk 0:00:18]} 36. c4 {[%clk 0:02:42]}  Ke6 {[%clk 0:00:17]} 37. h7 {[%clk 0:02:38]}  Rb8 {[%clk 0:00:16]} 38. b6 {[%clk 0:02:39]}  e4 {[%clk 0:00:12]} 39. b7 {[%clk 0:02:39]}  Kf5 {[%clk 0:00:12]} 40. Rh1 {[%clk 0:02:38]}  Rh8 {[%clk 0:00:11]} 41. b8=Q {[%clk 0:02:39]}  Rxb8 {[%clk 0:00:12]} 42. h8=Q {[%clk 0:02:40]}  Rxh8 {[%clk 0:00:12]} 43. Rxh8 {[%clk 0:02:41]}  Kxg5 {[%clk 0:00:11]} 44. Kd2 {[%clk 0:02:42]}  Kf5 {[%clk 0:00:10]} 45. Ke2 {[%clk 0:02:43]}  g5 {[%clk 0:00:11]} 46. Rc8 {[%clk 0:02:42]}  Kg4 {[%clk 0:00:09]} 47. Rxc5 {[%clk 0:02:43]}  e3 {[%clk 0:00:09]} 48. f3+ {[%clk 0:02:43]}  Kh4 {[%clk 0:00:08]} 49. Rf5 {[%clk 0:02:43]}  g4 {[%clk 0:00:08]} 50. Rxf4 {[%clk 0:02:44]}  Kh3 {[%clk 0:00:08]} 51. Rxg4 {[%clk 0:02:44]}  Kh2 {[%clk 0:00:05]} 52. c5 {[%clk 0:02:45]} 1-0


[Site "https://www.chess.com"]

[Event "Titled Tuesday Blitz July 18 Late 2023"]
[White "Bluebaum, Matthias"]
[Black "Yeritsyan, Hayk"]
[WhiteFideId "24651516"]
[BlackFideId "13307320"]
[WhiteElo "3015"]
[BlackElo "2499"]
[Result "1-0"]
[Round "1"]
[TimeControl "180+2"]
[Date "2023.07.18"]
[WhiteClock "0:02:03"]
[BlackClock "0:00:13"]
[Board "10"]

1. d4 {[%clk 0:03:00]}  d5 {[%clk 0:02:57]} 2. c4 {[%clk 0:03:01]}  e6 {[%clk 0:02:58]} 3. Nc3 {[%clk 0:03:01]}  Nf6 {[%clk 0:02:58]} 4. cxd5 {[%clk 0:03:01]}  Nxd5 {[%clk 0:02:56]} 5. e4 {[%clk 0:03:01]}  Nxc3 {[%clk 0:02:54]} 6. bxc3 {[%clk 0:03:02]}  c5 {[%clk 0:02:53]} 7. Rb1 {[%clk 0:03:03]}  cxd4 {[%clk 0:02:53]} 8. cxd4 {[%clk 0:03:04]}  Be7 {[%clk 0:02:51]} 9. Bc4 {[%clk 0:03:04]}  O-O {[%clk 0:02:51]} 10. Ne2 {[%clk 0:03:04]}  b6 {[%clk 0:02:50]} 11. O-O {[%clk 0:03:04]}  Bb7 {[%clk 0:02:51]} 12. Ng3 {[%clk 0:03:04]}  Nd7 {[%clk 0:02:50]} 13. Bb2 {[%clk 0:03:04]}  Bf6 {[%clk 0:02:47]} 14. e5 {[%clk 0:03:00]}  Be7 {[%clk 0:02:46]} 15. Qg4 {[%clk 0:03:00]}  Re8 {[%clk 0:02:30]} 16. Nh5 {[%clk 0:02:52]}  g6 {[%clk 0:02:18]} 17. Rbd1 {[%clk 0:02:47]}  Qc7 {[%clk 0:02:12]} 18. Bb3 {[%clk 0:02:38]}  Nf8 {[%clk 0:02:07]} 19. h4 {[%clk 0:02:34]}  Red8 {[%clk 0:01:58]} 20. Nf4 {[%clk 0:02:34]}  a5 {[%clk 0:01:46]} 21. a4 {[%clk 0:02:31]}  b5 {[%clk 0:01:46]} 22. d5 {[%clk 0:02:21]}  exd5 {[%clk 0:01:26]} 23. Nxd5 {[%clk 0:02:20]}  Bxd5 {[%clk 0:01:25]} 24. Bxd5 {[%clk 0:02:21]}  Rab8 {[%clk 0:01:03]} 25. e6 {[%clk 0:02:22]}  f6 {[%clk 0:01:02]} 26. Qf3 {[%clk 0:02:10]}  Kg7 {[%clk 0:00:48]} 27. h5 {[%clk 0:02:04]}  bxa4 {[%clk 0:00:41]} 28. Bxf6+ {[%clk 0:02:04]}  Bxf6 {[%clk 0:00:40]} 29. h6+ {[%clk 0:02:04]}  Kxh6 {[%clk 0:00:32]} 30. Qxf6 {[%clk 0:02:05]}  Re8 {[%clk 0:00:13]} 31. Rd3 {[%clk 0:02:03]} 1-0


[Site "https://www.chess.com"]

[Event "Titled Tuesday Blitz July 18 Late 2023"]
[White "Ansh M Shah"]
[Black "Duda, Jan-Krzysztof"]
[WhiteFideId "25033379"]
[BlackFideId "1170546"]
[WhiteElo "2492"]
[BlackElo "3012"]
[Result "0-1"]
[Round "1"]
[TimeControl "180+2"]
[Date "2023.07.18"]
[WhiteClock "0:00:00"]
[BlackClock "0:00:45"]
[Board "11"]

1. d4 {[%clk 0:02:50]}  g6 {[%clk 0:03:00]} 2. c4 {[%clk 0:02:51]}  Bg7 {[%clk 0:03:00]} 3. Nc3 {[%clk 0:02:50]}  d6 {[%clk 0:03:00]} 4. e4 {[%clk 0:02:50]}  e6 {[%clk 0:02:58]} 5. Be3 {[%clk 0:02:49]}  b6 {[%clk 0:02:57]} 6. f3 {[%clk 0:02:49]}  Bb7 {[%clk 0:02:56]} 7. g3 {[%clk 0:02:49]}  Nd7 {[%clk 0:02:54]} 8. Bg2 {[%clk 0:02:49]}  a6 {[%clk 0:02:52]} 9. Nge2 {[%clk 0:02:49]}  c5 {[%clk 0:02:48]} 10. O-O {[%clk 0:02:49]}  cxd4 {[%clk 0:02:44]} 11. Nxd4 {[%clk 0:02:49]}  Ngf6 {[%clk 0:02:42]} 12. Rc1 {[%clk 0:02:47]}  O-O {[%clk 0:02:41]} 13. b3 {[%clk 0:02:43]}  Rc8 {[%clk 0:02:41]} 14. Qd2 {[%clk 0:02:43]}  Qc7 {[%clk 0:02:39]} 15. Bh6 {[%clk 0:02:40]}  Bxh6 {[%clk 0:02:33]} 16. Qxh6 {[%clk 0:02:41]}  Qc5 {[%clk 0:02:32]} 17. Qe3 {[%clk 0:02:40]}  e5 {[%clk 0:02:27]} 18. Nc2 {[%clk 0:02:39]}  b5 {[%clk 0:02:27]} 19. Qxc5 {[%clk 0:02:28]}  Nxc5 {[%clk 0:02:28]} 20. Ne3 {[%clk 0:02:24]}  b4 {[%clk 0:02:26]} 21. Ne2 {[%clk 0:02:19]}  a5 {[%clk 0:02:24]} 22. Rfd1 {[%clk 0:02:19]}  Rfd8 {[%clk 0:02:22]} 23. Rc2 {[%clk 0:02:05]}  Kf8 {[%clk 0:02:21]} 24. Nc1 {[%clk 0:02:06]}  Ke7 {[%clk 0:02:20]} 25. Nd3 {[%clk 0:02:06]}  Ne6 {[%clk 0:02:01]} 26. Rcd2 {[%clk 0:01:56]}  Nd7 {[%clk 0:01:59]} 27. Bh3 {[%clk 0:01:40]}  Ng5 {[%clk 0:01:48]} 28. Bxd7 {[%clk 0:01:19]}  Nxf3+ {[%clk 0:01:45]} 29. Kg2 {[%clk 0:00:57]}  Nxd2 {[%clk 0:01:42]} 30. Bxc8 {[%clk 0:00:56]}  Bxe4+ {[%clk 0:01:35]} 31. Kf2 {[%clk 0:00:51]}  Nxb3 {[%clk 0:01:30]} 32. axb3 {[%clk 0:00:46]}  Rxc8 {[%clk 0:01:30]} 33. Nb2 {[%clk 0:00:40]}  Ke6 {[%clk 0:01:29]} 34. Ra1 {[%clk 0:00:31]}  Ra8 {[%clk 0:01:28]} 35. c5 {[%clk 0:00:25]}  d5 {[%clk 0:01:20]} 36. Na4 {[%clk 0:00:26]}  Rc8 {[%clk 0:01:18]} 37. Rc1 {[%clk 0:00:21]}  Rc6 {[%clk 0:01:17]} 38. Ke2 {[%clk 0:00:18]}  f5 {[%clk 0:01:16]} 39. Nb2 {[%clk 0:00:15]}  g5 {[%clk 0:01:12]} 40. Nd3 {[%clk 0:00:12]}  h5 {[%clk 0:01:12]} 41. Nf2 {[%clk 0:00:13]}  d4 {[%clk 0:00:56]} 42. Nxe4 {[%clk 0:00:07]}  fxe4 {[%clk 0:00:57]} 43. Nf1 {[%clk 0:00:05]}  e3 {[%clk 0:00:51]} 44. Kd3 {[%clk 0:00:05]}  Kd5 {[%clk 0:00:50]} 45. h3 {[%clk 0:00:03]}  Rxc5 {[%clk 0:00:44]} 46. Rxc5+ {[%clk 0:00:00]}  Kxc5 {[%clk 0:00:45]} 0-1


[Site "https://www.chess.com"]